fUSD/lending_fUSD_20250115
["ID","MTS","AMOUNT","RATE_DAILY","PERIOD"]
[349109230,1736974232019,-4442.12662957,0.00039,4]
[349109231,1736974232031,-277.59,0.00039141,2]
[349109232,1736974232043,-2.64337043,0.000399,3]
[349109233,1736974232058,-219.35545239,0.000399,3]
[349109234,1736974232070,-296.0,0.00039998,5]
[349109235,1736974232082,-149.46141543,0.00039999,4]
[349109236,1736974232096,-0.53858457,0.00039999,4]
[349109237,1736974232108,-928.47597903,0.0004,90]
[349109238,1736974232187,-1220.46398211,0.0004,90]
[349109239,1736974232202,-901.88494355,0.0004,90]
[349109265,1736974237454,-2041.8,0.0004,90]
[349109266,1736974237467,-8695.33159424,0.0004,90]
[349109267,1736974237508,-16519.30110687,0.0004,90]
[349109268,1736974237518,-74952.69003088,0.0004,120]
[349109269,1736974237527,-7230.50298161,0.0004,2]
[349109270,1736974237539,-352.10604785,0.0004,2]
[349109271,1736974237550,-988.20633372,0.0004,2]
[349109272,1736974237562,-130062.52402855,0.0004,2]
[349109273,1736974237571,-8064.27245607,0.00040202,15]
[349109274,1736974237580,-150.0,0.00040402,7]
[349109275,1736974237590,-500.0,0.00040462,2]
[349109276,1736974237599,-8064.27245599,0.00040557,15]
[349109277,1736974237608,-221.99882282,0.00040614,3]
[349109278,1736974237618,-763.869,0.00040632,58]
[349109279,1736974237627,-8064.27245599,0.00040912,15]
[349109280,1736974237636,-150.0,0.00041123,30]
[349109281,1736974237646,-255.36,0.00041266,2]
[349109282,1736974237655,-8064.27245599,0.00041267,15]
[349109283,1736974237665,-2852.39068391,0.000413,2]
[349109284,1736974237676,-11383.46565509,0.000413,2]
[349109285,1736974237686,-250.0,0.00041308,2]
[349109286,1736974237696,-23900.0,0.00041319,2]
[349109287,1736974237705,-221.99882282,0.00041329,3]
[349109288,1736974237717,-250.0,0.0004133,120]
[349109289,1736974237726,-277.59,0.00041405,2]
[349109290,1736974237736,-153.1,0.0004142,2]
[349109291,1736974237745,-214.07,0.0004142,120]
[349109292,1736974237754,-250.0,0.00041442,2]
[349109293,1736974237763,-2751.0,0.00041484,120]
[349109294,1736974237773,-153.1,0.00041489,2]
[349109295,1736974237782,-153.1,0.00041558,2]
[349109296,1736974237791,-8064.27245599,0.00041622,15]
[349109297,1736974237800,-153.1,0.00041627,2]
[349109298,1736974237810,-150.0,0.00041647,2]
[349109299,1736974237820,-1000.0,0.00041758,2]
[349109300,1736974237830,-205.04135616,0.000418,15]
[349109301,1736974237841,-150.0,0.00041845,30]
[349109302,1736974237851,-335.7,0.00041862,2]
[349109303,1736974237860,-1000.0,0.000419,35]
[349109304,1736974237870,-1000.0,0.000419,35]
[349109305,1736974237879,-1000.0,0.000419,35]
[349109306,1736974237888,-1000.0,0.000419,7]
[349109307,1736974237898,-1000.0,0.000419,7]
[349109308,1736974237907,-1000.0,0.000419,7]
[349109309,1736974237917,-1000.0,0.000419,17]
[349109310,1736974237926,-1000.0,0.000419,17]
[349109311,1736974237936,-494.0,0.000419,20]
[349109312,1736974237945,-1000.0,0.000419,12]
[349109313,1736974237955,-1000.0,0.000419,12]
[349109314,1736974237966,-647.0,0.000419,25]
[349109315,1736974237975,-1000.0,0.000419,12]
[349109316,1736974237984,-1000.0,0.000419,12]
[349109317,1736974237993,-5200.49602991,0.00041978,15]
[349109318,1736974238004,-557.91029838,0.00041978,15]
[349109319,1736974238019,-2305.8661277,0.00041978,15]
[349109320,1736974238029,-205.04135607,0.00041978,15]
[349109321,1736974238038,-740.06023836,0.00042,10]
[349109322,1736974238049,-259.93976164,0.00042,10]
[349109323,1736974238058,-1000.0,0.00042,10]
[349109324,1736974238067,-1000.0,0.00042,10]
[349109325,1736974238077,-1000.0,0.00042,10]
[349109326,1736974238086,-357.64703615,0.00042,10]
[349109327,1736974238098,-642.35296385,0.00042,10]
[349109328,1736974238107,-1000.0,0.00042,15]
[349109329,1736974238117,-1000.0,0.00042,15]
[349109330,1736974238126,-1000.0,0.00042,15]
[349109331,1736974238136,-794.0,0.00042,35]
[349109332,1736974238146,-221.99882282,0.00042043,3]
[349109333,1736974238155,-205.04135607,0.00042155,15]
[349109334,1736974238164,-8064.27245599,0.00042333,15]
[349109335,1736974238174,-205.04135607,0.00042333,15]
[349109336,1736974238183,-150.011605,0.00042448,120]
[349109337,1736974238193,-150.011605,0.00042498,119]
[349109338,1736974238203,-205.04135607,0.0004251,15]
[349109339,1736974238214,-150.011605,0.00042548,120]
[349109340,1736974238224,-6149.45087271,0.0004259,2]
[349109341,1736974238233,-150.011605,0.00042598,119]
[349109342,1736974238243,-150.011605,0.00042648,120]
[349109343,1736974238253,-2898.40749582,0.00042657,120]
[349109344,1736974238262,-200.0,0.00042677,120]
[349109345,1736974238272,-200.0,0.00042686,120]
[349109346,1736974238281,-8064.27245599,0.00042688,15]
[349109347,1736974238291,-205.04135607,0.00042688,15]
[349109348,1736974238300,-13494.93998386,0.00042692,120]
[349109349,1736974238309,-150.011605,0.00042698,119]
[349109350,1736974238319,-2898.40749582,0.00042699,120]
[349109351,1736974238328,-801.5976,0.000427,2]
[349109352,1736974238338,-200.0,0.00042715,120]
[349109353,1736974238347,-393.54111717,0.00042739,120]
[349109354,1736974238357,-150.011605,0.00042748,120]
[349109355,1736974238370,-221.99882282,0.00042757,4]
[349109356,1736974238379,-2898.40749582,0.00042796,120]
[349109357,1736974238389,-150.011605,0.00042798,119]
[349109358,1736974238399,-214.86162068,0.00042813,15]
[349109359,1736974238409,-2898.40749582,0.00042823,120]
[349109360,1736974238419,-13494.93998386,0.00042836,120]
[349109361,1736974238428,-150.011605,0.00042848,120]
[349109362,1736974238438,-13494.93998386,0.00042854,120]
[349109363,1736974238447,-205.04135607,0.00042865,15]
[349109364,1736974238457,-393.54111717,0.00042879,120]
[349109365,1736974238467,-393.54111717,0.00042881,120]
[349109366,1736974238477,-150.011605,0.00042898,119]
[349109367,1736974238486,-603.0864,0.00042913,120]
[349109368,1736974238494,-1000.0,0.00042913,2]
[349109369,1736974238503,-385.3619,0.00042913,2]
[349109370,1736974238512,-3906.00689009,0.00042913,3]
[349109371,1736974238524,-151.60820991,0.00042913,3]
[349109372,1736974238533,-407.14563735,0.00042913,120]
[349109373,1736974238542,-508.30459805,0.00042913,2]
[349109374,1736974238552,-13494.93998386,0.00042915,120]
[349109375,1736974238561,-393.54111717,0.00042922,120]
[349109376,1736974238571,-200.0,0.00042923,120]
[349109377,1736974238580,-2898.40749582,0.00042923,120]
[349109378,1736974238589,-393.54111717,0.00042925,120]
[349109379,1736974238598,-150.011605,0.00042948,120]
[349109380,1736974238607,-65.21196178,0.00042953,120]
[349109381,1736974238619,-13429.72802208,0.00042953,120]
[349109382,1736974238628,-407.14563731,0.00042967,120]
[349109383,1736974238637,-200.0,0.00042969,120]
[349109384,1736974238646,-150.011605,0.00042998,119]
[349109385,1736974238655,-159.05,0.00043003,2]
[349109386,1736974238665,-2500.0,0.00043012,120]
[349109387,1736974238674,-31838.38496455,0.00043013,35]
[349109388,1736974238735,-689.32368187,0.00043013,35]
[349109389,1736974238747,-23299.44337261,0.00043013,35]
[349109390,1736974238763,-13260.0,0.00043013,35]
[349109391,1736974238779,-152.20475129,0.00040102,2]
[349109392,1736974238788,-461091.84058418,0.00043013,35]
[349109393,1736974238800,-2103.10645747,0.00043013,35]
[349109394,1736974238811,-10307.57774289,0.00043013,35]
[349109395,1736974238822,-449.500001,0.00043013,35]
[349109396,1736974238834,-736.57390145,0.00043013,35]
[349109397,1736974238845,-957.65085964,0.00043013,35]
[349109398,1736974238856,-400.97885,0.00043013,35]
[349109399,1736974238867,-480.891175,0.00043013,35]
[349109400,1736974238878,-528.69395831,0.00043013,35]
[349109401,1736974238889,-859.54031443,0.00043013,35]
[349109402,1736974238900,-5680.29847286,0.00043013,35]
[349109403,1736974238912,-925.1,0.00043013,35]
[349109404,1736974238924,-2123.30950307,0.00043013,35]
[349109422,1736974239653,-467.00479977,0.00043013,35]
[349109440,1736974239874,-16201.36291002,0.00043013,35]
[349109441,1736974239885,-495.6,0.00043013,35]
[349109442,1736974239897,-823.431,0.00043013,35]
[349109443,1736974239908,-509.59999992,0.00043013,35]
[349109444,1736974240037,-3448.1,0.00043013,35]
[349109471,1736974242635,-933.70796023,0.00043013,35]
[349109474,1736974242692,-152290.14337172,0.00043013,35]
[349109475,1736974242927,-152.20475128,0.00042913,2]
[349109476,1736974242936,-5490.29494872,0.00043013,35]
[349109477,1736974242948,-9912.071988,0.00043013,35]
[349109478,1736974242959,-186599.17647787,0.00043013,35]
[349109479,1736974242971,-14446.45335528,0.00043013,35]
[349109480,1736974242982,-2490.47516259,0.00043013,35]
[349109481,1736974243005,-500.0,0.00043013,35]
[349109482,1736974243016,-3997.824,0.00043013,35]
[349109483,1736974243060,-3576.9,0.00043013,35]
[349109492,1736974245596,-5713.63767922,0.00042913,2]
[349109493,1736974245606,-4529.75837029,0.00043013,35]
[349109494,1736974245615,-500.0,0.00043013,4]
[349109495,1736974245625,-645.45532167,0.00043013,4]
[349109496,1736974245635,-151.0,0.00043013,14]
[349109497,1736974245645,-169.5,0.00043013,14]
[349109498,1736974245654,-151.0,0.00043013,14]
[349109499,1736974245665,-151.0,0.00043013,14]
[349109500,1736974245675,-151.0,0.00043013,14]
[349109501,1736974245685,-151.0,0.00043013,14]
[349109502,1736974245694,-151.0,0.00043013,14]
[349109503,1736974245703,-233.244352,0.00043013,14]
[349109504,1736974245713,-151.0,0.00043013,14]
[349109505,1736974245725,-151.0,0.00043013,14]
[349109506,1736974245735,-500.0,0.00043013,4]
[349109507,1736974245744,-500.0,0.00043013,4]
[349109508,1736974245755,-500.0,0.00043013,4]
[349109509,1736974245765,-504.11241558,0.00043013,4]
[349109510,1736974245775,-500.0,0.00043013,4]
[349109511,1736974245785,-500.0,0.00043013,4]
[349109512,1736974245794,-500.0,0.00043013,4]
[349109513,1736974245804,-500.0,0.00043013,4]
[349109514,1736974245814,-501.31787516,0.00043013,4]
[349109515,1736974245824,-242.26299667,0.00043013,4]
[349109516,1736974245834,-151.0,0.00043013,14]
[349109517,1736974245843,-151.0,0.00043013,14]
[349109518,1736974245853,-501.94166573,0.00043013,4]
[349109519,1736974245863,-500.0,0.00043013,4]
[349109520,1736974245873,-500.0,0.00043013,4]
[349109521,1736974245882,-500.0,0.00043013,4]
[349109522,1736974245891,-500.0,0.00043013,4]
[349109523,1736974245901,-595.28929476,0.00043013,4]
[349109524,1736974245911,-501.62786678,0.00043013,4]
[349109525,1736974245921,-500.0,0.00043013,4]
[349109526,1736974245931,-500.0,0.00043013,4]
[349109527,1736974245941,-500.0,0.00043013,4]
[349109528,1736974245950,-500.0,0.00043013,4]
[349109529,1736974245960,-500.0,0.00043013,4]
[349109530,1736974245973,-500.0,0.00043013,4]
[349109531,1736974245982,-500.0,0.00043013,4]
[349109532,1736974245993,-500.0,0.00043013,4]
[349109533,1736974246002,-500.0,0.00043013,4]
[349109534,1736974246012,-500.0,0.00043013,4]
[349109535,1736974246022,-500.0,0.00043013,4]
[349109536,1736974246031,-349.21,0.00043013,4]
[349109537,1736974246042,-500.0,0.00043013,4]
[349109538,1736974246052,-500.0,0.00043013,4]
[349109539,1736974246062,-500.0,0.00043013,4]
[349109540,1736974246073,-408.46642065,0.00043013,4]
[349109541,1736974246083,-500.0,0.00043013,4]
[349109542,1736974246093,-500.0,0.00043013,4]
[349109543,1736974246102,-500.0,0.00043013,4]
[349109544,1736974246112,-500.0,0.00043013,4]
[349109545,1736974246121,-500.0,0.00043013,4]
[349109546,1736974246132,-500.0,0.00043013,4]
[349109547,1736974246141,-500.0,0.00043013,4]
[349109548,1736974246150,-500.0,0.00043013,4]
[349109549,1736974246159,-522.44301276,0.00043013,4]
[349109550,1736974246170,-500.0,0.00043013,4]
[349109551,1736974246179,-500.0,0.00043013,4]
[349109552,1736974246188,-500.0,0.00043013,4]
[349109553,1736974246198,-500.0,0.00043013,4]
[349109554,1736974246207,-500.0,0.00043013,4]
[349109555,1736974246218,-500.0,0.00043013,4]
[349109556,1736974246227,-500.0,0.00043013,4]
[349109557,1736974246237,-552.35209725,0.00043013,4]
[349109558,1736974246247,-500.0,0.00043013,4]
[349109559,1736974246256,-500.0,0.00043013,4]
[349109560,1736974246266,-500.0,0.00043013,4]
[349109561,1736974246275,-500.0,0.00043013,4]
[349109562,1736974246284,-89.2622914,0.00043013,4]
[349109563,1736974246417,-410.7377086,0.00043013,4]
[349109564,1736974246427,-500.0,0.00043013,4]
[349109565,1736974246436,-500.0,0.00043013,4]
[349109566,1736974246446,-256.53,0.00043013,4]
[349109567,1736974246456,-500.0,0.00043013,4]
[349109568,1736974246467,-500.0,0.00043013,4]
[349109569,1736974246477,-164.59222584,0.00043013,4]
[349109570,1736974246487,-500.0,0.00043013,4]
[349109571,1736974246498,-500.0,0.00043013,4]
[349109572,1736974246507,-513.47198108,0.00043013,4]
[349109573,1736974246517,-781.97,0.00043013,4]
[349109574,1736974246526,-781.97,0.00043013,4]
[349109575,1736974246535,-781.97,0.00043013,4]
[349109576,1736974246545,-500.0,0.00043013,4]
[349109577,1736974246555,-781.97,0.00043013,4]
[349109578,1736974246564,-473.27664543,0.00043013,4]
[349109579,1736974246573,-500.0,0.00043013,4]
[349109580,1736974246583,-781.97,0.00043013,4]
[349109581,1736974246592,-500.0,0.00043013,4]
[349109582,1736974246602,-781.97,0.00043013,4]
[349109583,1736974246611,-781.97,0.00043013,4]
[349109584,1736974246620,-781.97,0.00043013,4]
[349109585,1736974246630,-781.97,0.00043013,4]
[349109586,1736974246639,-781.97,0.00043013,4]
[349109587,1736974246649,-781.97,0.00043013,4]
[349109588,1736974246658,-781.97,0.00043013,4]
[349109589,1736974246667,-781.97,0.00043013,4]
[349109590,1736974246677,-500.0,0.00043013,4]
[349109591,1736974246687,-500.0,0.00043013,4]
[349109592,1736974246696,-500.0,0.00043013,4]
[349109593,1736974246705,-500.0,0.00043013,4]
[349109594,1736974246715,-500.0,0.00043013,4]
[349109595,1736974246725,-500.0,0.00043013,4]
[349109596,1736974246735,-504.81096086,0.00043013,4]
[349109597,1736974246745,-500.0,0.00043013,4]
[349109598,1736974246754,-500.0,0.00043013,4]
[349109599,1736974246764,-500.0,0.00043013,4]
[349109600,1736974246773,-500.0,0.00043013,4]
[349109601,1736974246785,-500.0,0.00043013,4]
[349109602,1736974246794,-500.0,0.00043013,4]
[349109603,1736974246803,-500.0,0.00043013,4]
[349109604,1736974246813,-500.0,0.00043013,4]
[349109605,1736974246823,-500.0,0.00043013,4]
[349109606,1736974246833,-500.0,0.00043013,4]
[349109607,1736974246842,-500.0,0.00043013,4]
[349109608,1736974246851,-500.0,0.00043013,4]
[349109609,1736974246861,-500.0,0.00043013,4]
[349109610,1736974246871,-500.0,0.00043013,4]
[349109611,1736974246880,-500.0,0.00043013,4]
[349109612,1736974246890,-500.0,0.00043013,4]
[349109613,1736974246901,-500.0,0.00043013,4]
[349109614,1736974246911,-500.0,0.00043013,4]
[349109615,1736974246921,-500.0,0.00043013,4]
[349109616,1736974246931,-500.0,0.00043013,4]
[349109617,1736974246941,-500.0,0.00043013,4]
[349109618,1736974246951,-500.0,0.00043013,4]
[349109619,1736974246960,-500.0,0.00043013,4]
[349109620,1736974246971,-500.0,0.00043013,4]
[349109621,1736974246980,-500.0,0.00043013,4]
[349109622,1736974246991,-500.0,0.00043013,4]
[349109623,1736974247000,-447.09519847,0.00043013,4]
[349109624,1736974247010,-500.0,0.00043013,4]
[349109625,1736974247020,-500.0,0.00043013,4]
[349109626,1736974247030,-500.0,0.00043013,4]
[349109627,1736974247040,-500.0,0.00043013,4]
[349109628,1736974247050,-500.0,0.00043013,4]
[349109629,1736974247059,-500.0,0.00043013,4]
[349109630,1736974247069,-500.0,0.00043013,4]
[349109631,1736974247118,-500.0,0.00043013,4]
[349109632,1736974247127,-500.0,0.00043013,4]
[349109633,1736974247136,-500.0,0.00043013,4]
[349109634,1736974247145,-500.0,0.00043013,4]
[349109635,1736974247155,-500.0,0.00043013,4]
[349109636,1736974247164,-500.0,0.00043013,4]
[349109637,1736974247173,-500.0,0.00043013,4]
[349109638,1736974247183,-500.0,0.00043013,4]
[349109639,1736974247192,-500.0,0.00043013,4]
[349109640,1736974247201,-502.08796493,0.00043013,4]
[349109641,1736974247212,-500.0,0.00043013,4]
[349109642,1736974247224,-500.0,0.00043013,4]
[349109643,1736974247233,-500.0,0.00043013,4]
[349109644,1736974247243,-500.0,0.00043013,4]
[349109645,1736974247253,-500.0,0.00043013,4]
[349109646,1736974247262,-500.0,0.00043013,4]
[349109647,1736974247271,-500.0,0.00043013,4]
[349109648,1736974247280,-500.0,0.00043013,4]
[349109649,1736974247290,-548.02900469,0.00043013,4]
[349109650,1736974247299,-500.0,0.00043013,4]
[349109651,1736974247308,-182.6104028,0.00043013,4]
[349109652,1736974247317,-500.0,0.00043013,4]
[349109653,1736974247326,-500.0,0.00043013,4]
[349109654,1736974247336,-500.0,0.00043013,4]
[349109655,1736974247346,-500.0,0.00043013,4]
[349109656,1736974247355,-500.0,0.00043013,4]
[349109657,1736974247366,-508.84964815,0.00043013,4]
[349109658,1736974247378,-500.0,0.00043013,4]
[349109659,1736974247387,-500.0,0.00043013,4]
[349109660,1736974247397,-500.0,0.00043013,4]
[349109661,1736974247408,-500.0,0.00043013,4]
[349109662,1736974247417,-507.97936771,0.00043013,4]
[349109663,1736974247427,-500.0,0.00043013,4]
[349109664,1736974247436,-500.0,0.00043013,4]
[349109665,1736974247446,-500.0,0.00043013,4]
[349109666,1736974247455,-500.0,0.00043013,4]
[349109667,1736974247465,-500.0,0.00043013,4]
[349109668,1736974247475,-500.0,0.00043013,4]
[349109669,1736974247485,-500.0,0.00043013,4]
[349109670,1736974247494,-500.0,0.00043013,4]
[349109671,1736974247504,-500.0,0.00043013,4]
[349109672,1736974247514,-505.04635782,0.00043013,4]
[349109673,1736974247523,-500.0,0.00043013,4]
[349109674,1736974247534,-502.84135481,0.00043013,4]
[349109675,1736974247545,-500.0,0.00043013,4]
[349109676,1736974247557,-500.0,0.00043013,4]
[349109677,1736974247567,-500.0,0.00043013,4]
[349109678,1736974247577,-526.32387161,0.00043013,4]
[349109679,1736974247586,-507.16292847,0.00043013,4]
[349109680,1736974247595,-500.0,0.00043013,4]
[349109681,1736974247604,-500.0,0.00043013,4]
[349109682,1736974247614,-593.51436777,0.00043013,4]
[349109683,1736974247623,-500.0,0.00043013,4]
[349109684,1736974247632,-500.0,0.00043013,4]
[349109685,1736974247641,-500.0,0.00043013,4]
[349109686,1736974247651,-509.35166967,0.00043013,4]
[349109687,1736974247659,-506.54302831,0.00043013,4]
[349109688,1736974247669,-500.0,0.00043013,4]
[349109689,1736974247679,-500.0,0.00043013,4]
[349109690,1736974247688,-500.0,0.00043013,4]
[349109691,1736974247698,-500.0,0.00043013,4]
[349109692,1736974247707,-500.0,0.00043013,4]
[349109693,1736974247718,-500.0,0.00043013,4]
[349109694,1736974247727,-554.57343114,0.00043013,4]
[349109695,1736974247737,-500.0,0.00043013,4]
[349109696,1736974247746,-500.0,0.00043013,4]
[349109697,1736974247756,-500.0,0.00043013,4]
[349109698,1736974247765,-501.48059,0.00043013,4]
[349109699,1736974247774,-500.0,0.00043013,4]
[349109700,1736974247784,-500.0,0.00043013,4]
[349109701,1736974247794,-500.0,0.00043013,4]
[349109702,1736974247803,-500.0,0.00043013,4]
[349109703,1736974247812,-500.0,0.00043013,4]
[349109704,1736974247822,-500.0,0.00043013,4]
[349109705,1736974247831,-500.0,0.00043013,4]
[349109706,1736974247844,-500.0,0.00043013,4]
[349109707,1736974247853,-500.0,0.00043013,4]
[349109708,1736974247863,-500.0,0.00043013,4]
[349109709,1736974247872,-500.0,0.00043013,4]
[349109710,1736974247882,-500.0,0.00043013,4]
[349109711,1736974247891,-500.0,0.00043013,4]
[349109712,1736974247901,-500.0,0.00043013,4]
[349109713,1736974247910,-500.0,0.00043013,4]
[349109714,1736974247919,-500.0,0.00043013,4]
[349109715,1736974247928,-540.86,0.00043013,4]
[349109716,1736974247938,-151.0,0.00043013,14]
[349109717,1736974247947,-151.0,0.00043013,14]
[349109718,1736974247956,-500.0,0.00043013,4]
[349109719,1736974247966,-500.0,0.00043013,4]
[349109720,1736974247979,-154.38115802,0.00043013,4]
[349109721,1736974247989,-569.87751083,0.00043013,4]
[349109722,1736974247999,-151.0,0.00043013,14]
[349109723,1736974248008,-151.0,0.00043013,14]
[349109724,1736974248018,-500.42817581,0.00043013,2]
[349109725,1736974248028,-500.0,0.00043013,4]
[349109726,1736974248037,-500.0,0.00043013,4]
[349109727,1736974248047,-500.0,0.00043013,4]
[349109728,1736974248056,-500.0,0.00043013,4]
[349109729,1736974248065,-504.73948091,0.00043013,4]
[349109730,1736974248076,-500.0,0.00043013,4]
[349109731,1736974248086,-500.0,0.00043013,4]
[349109732,1736974248095,-500.0,0.00043013,4]
[349109733,1736974248105,-500.0,0.00043013,4]
[349109734,1736974248114,-500.0,0.00043013,4]
[349109735,1736974248123,-501.29193845,0.00043013,4]
[349109736,1736974248134,-155.48990264,0.00043013,4]
[349109737,1736974248144,-500.0,0.00043013,4]
[349109738,1736974248153,-500.0,0.00043013,4]
[349109739,1736974248162,-500.0,0.00043013,4]
[349109740,1736974248171,-151.0,0.00043013,14]
[349109741,1736974248181,-151.0,0.00043013,14]
[349109742,1736974248191,-500.0,0.00043013,4]
[349109743,1736974248200,-500.0,0.00043013,4]
[349109744,1736974248209,-500.0,0.00043013,4]
[349109745,1736974248220,-500.0,0.00043013,4]
[349109746,1736974248230,-500.0,0.00043013,4]
[349109747,1736974248239,-500.0,0.00043013,4]
[349109748,1736974248248,-500.0,0.00043013,4]
[349109749,1736974248257,-500.0,0.00043013,4]
[349109750,1736974248266,-256.575847,0.00043013,14]
[349109751,1736974248276,-500.0,0.00043013,4]
[349109752,1736974248285,-500.0,0.00043013,4]
[349109753,1736974248295,-500.0,0.00043013,4]
[349109754,1736974248304,-500.0,0.00043013,4]
[349109755,1736974248314,-500.0,0.00043013,4]
[349109756,1736974248323,-503.16154638,0.00043013,4]
[349109757,1736974248332,-500.0,0.00043013,4]
[349109758,1736974248341,-500.0,0.00043013,4]
[349109759,1736974248351,-500.0,0.00043013,4]
[349109760,1736974248360,-500.0,0.00043013,4]
[349109761,1736974248371,-500.0,0.00043013,4]
[349109762,1736974248380,-500.0,0.00043013,4]
[349109763,1736974248390,-194.86057501,0.00043013,4]
[349109764,1736974248469,-305.13942499,0.00043013,4]
[349109765,1736974248479,-138.45233651,0.00043013,4]
[349109766,1736974248491,-361.54766349,0.00043013,4]
[349109767,1736974248500,-394.38733651,0.00043013,4]
[349109768,1736974248512,-105.61266349,0.00043013,4]
[349109769,1736974248522,-500.0,0.00043013,4]
[349109770,1736974248531,-500.0,0.00043013,4]
[349109771,1736974248541,-500.0,0.00043013,4]
[349109772,1736974248550,-500.0,0.00043013,4]
[349109773,1736974248560,-500.0,0.00043013,4]
[349109774,1736974248570,-500.0,0.00043013,4]
[349109775,1736974248579,-500.0,0.00043013,4]
[349109776,1736974248589,-640.2319155,0.00043013,4]
[349109777,1736974248598,-500.0,0.00043013,4]
[349109778,1736974248608,-500.0,0.00043013,4]
[349109779,1736974248618,-500.0,0.00043013,4]
[349109780,1736974248628,-500.0,0.00043013,4]
[349109781,1736974248637,-500.0,0.00043013,4]
[349109782,1736974248647,-500.0,0.00043013,4]
[349109783,1736974248656,-500.0,0.00043013,4]
[349109784,1736974248666,-500.0,0.00043013,4]
[349109785,1736974248675,-500.0,0.00043013,4]
[349109786,1736974248685,-500.0,0.00043013,4]
[349109787,1736974248695,-500.0,0.00043013,4]
[349109788,1736974248705,-500.0,0.00043013,4]
[349109789,1736974248714,-500.0,0.00043013,4]
[349109790,1736974248728,-500.0,0.00043013,4]
[349109791,1736974248737,-500.0,0.00043013,4]
[349109792,1736974248747,-500.0,0.00043013,4]
[349109793,1736974248756,-500.0,0.00043013,4]
[349109794,1736974248766,-500.0,0.00043013,4]
[349109795,1736974248775,-500.0,0.00043013,4]
[349109796,1736974248785,-500.0,0.00043013,4]
[349109797,1736974248795,-500.0,0.00043013,4]
[349109798,1736974248805,-500.0,0.00043013,4]
[349109799,1736974248814,-500.0,0.00043013,4]
[349109800,1736974248824,-500.0,0.00043013,4]
[349109801,1736974248833,-500.0,0.00043013,4]
[349109802,1736974248843,-500.0,0.00043013,4]
[349109803,1736974248853,-500.0,0.00043013,4]
[349109804,1736974248863,-500.0,0.00043013,4]
[349109805,1736974248873,-501.79615603,0.00043013,4]
[349109806,1736974248883,-500.0,0.00043013,4]
[349109807,1736974248893,-500.0,0.00043013,4]
[349109808,1736974248903,-500.0,0.00043013,4]
[349109809,1736974248913,-500.0,0.00043013,4]
[349109810,1736974248922,-500.0,0.00043013,4]
[349109811,1736974248932,-500.0,0.00043013,4]
[349109812,1736974248943,-500.0,0.00043013,4]
[349109813,1736974248953,-500.0,0.00043013,4]
[349109814,1736974248963,-500.0,0.00043013,4]
[349109815,1736974248977,-500.0,0.00043013,4]
[349109816,1736974248989,-500.0,0.00043013,4]
[349109817,1736974249000,-500.0,0.00043013,4]
[349109818,1736974249010,-501.9157134,0.00043013,4]
[349109819,1736974249020,-500.0,0.00043013,4]
[349109820,1736974249030,-500.0,0.00043013,4]
[349109821,1736974249040,-500.0,0.00043013,4]
[349109822,1736974249050,-500.0,0.00043013,4]
[349109823,1736974249059,-500.0,0.00043013,4]
[349109824,1736974249069,-500.0,0.00043013,4]